fUSD/lending_fUSD_20251103
["ID","MTS","AMOUNT","RATE_DAILY","PERIOD"]
[392986074,1762198239450,-79692.88293375,0.00031,2]
[392986075,1762198239460,-489.19241238,0.00031,7]
[392986076,1762198239469,-1480.09,0.00031,7]
[392986077,1762198239479,-336.51932914,0.00031,5]
[392986078,1762198239489,-663.6,0.00031,2]
[392986079,1762198239498,-1000.0,0.00031028,7]
[392986080,1762198239508,-1000.0,0.00031222,7]
[392986081,1762198239517,-1929.14,0.00031232,2]
[392986082,1762198239526,-3310.91366811,0.00031234,3]
[392986083,1762198239535,-208.45748107,0.00031248,120]
[392986084,1762198239545,-204.25004624,0.00031248,120]
[392986085,1762198239554,-1000.0,0.00031412,7]
[392986086,1762198239565,-1206.65118536,0.0003143,4]
[392986087,1762198239574,-1000.0,0.00031479,7]
[392986088,1762198239584,-1929.14,0.00031506,2]
[392986089,1762198239593,-2841.01324969,0.00031569,2]
[392986090,1762198239603,-160.32763133,0.00031643,15]
[392986091,1762198239612,-500.0,0.00031646,7]
[392986092,1762198239622,-1929.14,0.0003178,2]
[392986093,1762198239631,-1000.0,0.00031803,7]
[392986094,1762198239641,-814.555,0.00031916,2]
[392986095,1762198239650,-819.0,0.00031916,2]
[392986096,1762198239659,-168.529,0.00031916,2]
[392986097,1762198239668,-905.0,0.00031916,2]
[392986098,1762198239678,-6653.0,0.00031916,2]
[392986099,1762198239687,-821.0,0.00031916,2]
[392986100,1762198239696,-6465.0,0.00031916,2]
[392986101,1762198239707,-573.0,0.00031916,2]
[392986102,1762198239717,-2140.0,0.00031916,2]
[392986103,1762198239726,-607.0,0.00031916,2]
[392986104,1762198239736,-3421.0,0.00031916,2]
[392986105,1762198239747,-1400.0,0.00031988,7]
[392986106,1762198239756,-1407.64204571,0.00031999,15]
[392986107,1762198239765,-194.03440737,0.00032,120]
[392986108,1762198239775,-1979.0,0.00032,5]
[392986109,1762198239784,-1929.14,0.00032054,2]
[392986110,1762198239795,-212.85,0.000321,30]
[392986111,1762198239805,-1929.14,0.00032328,2]
[392986112,1762198239815,-1929.14,0.00032602,2]
[392986113,1762198239824,-1929.14,0.00032876,2]
[392986114,1762198239833,-194.03440737,0.00033,120]
[392986115,1762198239843,-1929.14,0.0003315,2]
[392986116,1762198239852,-1000.0,0.00033165,2]
[392986117,1762198239862,-150.0,0.00033296,7]
[392986118,1762198239871,-663.6,0.000333,2]
[392986119,1762198239880,-150.0,0.00033337,7]
[392986120,1762198239889,-150.0,0.00033337,7]
[392986121,1762198239898,-160.32763133,0.00033414,15]
[392986122,1762198239906,-1929.14,0.00033424,2]
[392986123,1762198239916,-420.8788,0.00033499,10]
[392986124,1762198239925,-1480.09,0.000335,14]
[392986125,1762198239935,-1929.14,0.00033698,2]
[392986126,1762198239945,-194.03440737,0.000339,120]
[392986127,1762198239956,-153.0,0.00033946,90]
[392986128,1762198239965,-153.0,0.00033946,90]
[392986129,1762198239975,-153.0,0.00033946,90]
[392986130,1762198239986,-153.0,0.00033946,90]
[392986131,1762198239995,-153.0,0.00033946,90]
[392986132,1762198240004,-153.0,0.00033946,90]
[392986133,1762198240013,-153.0,0.00033946,90]
[392986134,1762198240022,-153.0,0.00033946,90]
[392986135,1762198240031,-153.0,0.00033946,90]
[392986136,1762198240039,-153.0,0.00033947,90]
[392986137,1762198240049,-153.0,0.00033947,90]
[392986138,1762198240058,-153.0,0.00033947,90]
[392986139,1762198240068,-153.0,0.00033947,90]
[392986140,1762198240077,-153.0,0.00033947,90]
[392986141,1762198240087,-153.0,0.00033947,90]
[392986142,1762198240096,-153.0,0.00033947,90]
[392986143,1762198240106,-153.0,0.00033947,90]
[392986144,1762198240115,-153.0,0.00033947,90]
[392986145,1762198240124,-153.0,0.00033947,90]
[392986146,1762198240133,-153.0,0.00033947,90]
[392986147,1762198240143,-153.0,0.00033947,90]
[392986148,1762198240152,-153.0,0.00033947,90]
[392986149,1762198240161,-153.0,0.00033947,90]
[392986150,1762198240170,-1929.14,0.00033972,2]
[392986151,1762198240179,-153.0,0.00033985,90]
[392986152,1762198240189,-153.0,0.00033985,90]
[392986153,1762198240198,-153.0,0.00033985,90]
[392986154,1762198240207,-153.0,0.00033985,90]
[392986155,1762198240216,-153.0,0.00033985,90]
[392986156,1762198240225,-153.0,0.00033985,90]
[392986157,1762198240235,-153.0,0.00033985,90]
[392986158,1762198240245,-153.0,0.00033985,90]
[392986159,1762198240254,-153.0,0.00033985,90]
[392986160,1762198240263,-153.0,0.00033985,90]
[392986161,1762198240273,-153.0,0.00033985,90]
[392986162,1762198240282,-153.0,0.00033986,90]
[392986163,1762198240291,-153.0,0.00033986,90]
[392986164,1762198240301,-153.0,0.00033986,90]
[392986165,1762198240310,-153.0,0.00033986,90]
[392986166,1762198240321,-153.0,0.00033986,90]
[392986167,1762198240330,-153.0,0.00033986,90]
[392986168,1762198240339,-153.0,0.00033986,90]
[392986169,1762198240349,-153.0,0.00033986,90]
[392986170,1762198240357,-204.25004624,0.00033988,120]
[392986171,1762198240366,-153.0,0.00033991,90]
[392986172,1762198240376,-192.0,0.00034012,120]
[392986173,1762198240384,-683.61,0.00034063,2]
[392986174,1762198240394,-1929.14,0.00034246,2]
[392986175,1762198240403,-500.0,0.00034247,5]
[392986176,1762198240412,-212.85,0.000343,30]
[392986177,1762198240421,-152.36,0.00034315,60]
[392986178,1762198240429,-150.97,0.00034317,60]
[392986179,1762198240439,-152.36,0.00034415,60]
[392986180,1762198240448,-150.97,0.00034417,60]
[392986181,1762198240457,-150.97,0.00034517,60]
[392986182,1762198240466,-1929.14,0.0003452,2]
[392986183,1762198240476,-300.0,0.000346,2]
[392986184,1762198240485,-347.44250129,0.000346,2]
[392986185,1762198240494,-150.97,0.00034617,60]
[392986186,1762198240503,-1000.0,0.00034658,5]
[392986187,1762198240512,-800.0,0.00034665,13]
[392986188,1762198240521,-800.0,0.00034665,13]
[392986189,1762198240530,-800.0,0.00034665,13]
[392986190,1762198240539,-800.0,0.00034665,13]
[392986191,1762198240549,-800.0,0.00034665,13]
[392986192,1762198240559,-800.0,0.00034665,13]
[392986193,1762198240569,-800.0,0.00034665,13]
[392986194,1762198240578,-594.0,0.00034665,13]
[392986195,1762198240587,-200.0,0.00034665,2]
[392986196,1762198240597,-200.0,0.00034665,2]
[392986197,1762198240606,-200.0,0.00034665,2]
[392986198,1762198240615,-200.0,0.00034665,2]
[392986199,1762198240625,-200.0,0.00034665,2]
[392986200,1762198240634,-200.0,0.00034665,2]
[392986201,1762198240645,-200.0,0.00034665,2]
[392986202,1762198240655,-200.0,0.00034665,2]
[392986203,1762198240665,-200.0,0.00034665,2]
[392986204,1762198240675,-200.0,0.00034665,2]
[392986205,1762198240683,-200.0,0.00034665,2]
[392986206,1762198240693,-200.0,0.00034665,2]
[392986207,1762198240704,-200.0,0.00034665,2]
[392986208,1762198240716,-200.0,0.00034665,2]
[392986209,1762198240726,-200.0,0.00034665,2]
[392986210,1762198240735,-200.0,0.00034665,2]
[392986211,1762198240745,-200.0,0.00034665,2]
[392986212,1762198240755,-200.0,0.00034665,2]
[392986213,1762198240764,-200.0,0.00034665,2]
[392986214,1762198240774,-200.0,0.00034665,2]
[392986215,1762198240786,-200.0,0.00034665,2]
[392986216,1762198240796,-200.0,0.00034665,2]
[392986217,1762198240805,-200.0,0.00034665,2]
[392986218,1762198240815,-200.0,0.00034665,2]
[392986219,1762198240824,-200.0,0.00034665,2]
[392986220,1762198240834,-200.0,0.00034665,2]
[392986221,1762198240843,-200.0,0.00034665,2]
[392986222,1762198240852,-200.0,0.00034665,2]
[392986223,1762198240862,-200.0,0.00034665,2]
[392986224,1762198240872,-200.0,0.00034665,2]
[392986225,1762198240881,-200.0,0.00034665,2]
[392986226,1762198240891,-200.0,0.00034665,2]
[392986227,1762198240900,-200.0,0.00034665,2]
[392986228,1762198240909,-200.0,0.00034665,2]
[392986229,1762198240918,-200.0,0.00034665,2]
[392986230,1762198240928,-289.0,0.00034665,2]
[392986231,1762198240939,-150.97,0.00034717,60]
[392986232,1762198240949,-1929.14,0.00034794,2]
[392986233,1762198240959,-150.97,0.00034817,60]
[392986234,1762198240969,-1161.62,0.00034867,30]
[392986235,1762198240979,-272.961,0.00034916,2]
[392986236,1762198240988,-2432.229,0.00034916,2]
[392986237,1762198240998,-573.0,0.00034916,2]
[392986238,1762198241007,-2140.0,0.00034916,2]
[392986239,1762198241016,-607.0,0.00034916,2]
[392986240,1762198241026,-150.97,0.00034917,60]
[392986241,1762198241036,-1000.0,0.00034931,2]
[392986242,1762198241045,-1056.61117648,0.00035,120]
[392986243,1762198241055,-354.30909551,0.00035,3]
[392986244,1762198241066,-500.0,0.00035,60]
[392986245,1762198241075,-218.39323255,0.00035,30]
[392986246,1762198241086,-20000.0,0.00035,15]
[392986247,1762198241097,-150.97,0.00035017,60]
[392986248,1762198241107,-1929.14,0.00035068,2]
[392986249,1762198241117,-466.47919615,0.00035068,5]
[392986250,1762198241126,-150.97,0.00035117,60]
[392986251,1762198241135,-160.32763133,0.00035185,15]
[392986252,1762198241144,-150.97,0.00035217,60]
[392986253,1762198241154,-1000.0,0.00035256,2]
[392986254,1762198241164,-150.97,0.00035317,60]
[392986255,1762198241174,-1929.14,0.00035342,2]
[392986256,1762198241183,-1000.0,0.00035402,2]
[392986257,1762198241193,-150.97,0.00035417,60]
[392986258,1762198241202,-1000.0,0.00035503,2]
[392986259,1762198241211,-150.97,0.00035517,60]
[392986260,1762198241220,-300.0,0.00035563,74]
[392986261,1762198241230,-212.85,0.000356,30]
[392986262,1762198241240,-1929.14,0.00035616,2]
[392986263,1762198241249,-308.6763786,0.00035616,120]
[392986264,1762198241259,-150.97,0.00035617,60]
[392986265,1762198241268,-192.0,0.00035712,120]
[392986266,1762198241278,-150.97,0.00035717,60]
[392986267,1762198241288,-150.97,0.00035817,60]
[392986268,1762198241297,-567.0,0.00035861,7]
[392986269,1762198241306,-1000.0,0.00035871,7]
[392986270,1762198241316,-1929.14,0.0003589,2]
[392986271,1762198241326,-1000.0,0.000359,7]
[392986272,1762198241335,-150.97,0.00035917,60]
[392986273,1762198241344,-567.0,0.00035937,2]
[392986274,1762198241355,-500.0,0.00036,30]
[392986275,1762198241364,-200.0,0.00036013,2]
[392986276,1762198241373,-150.97,0.00036017,60]
[392986277,1762198241382,-150.97,0.00036117,60]
[392986278,1762198241391,-2000.0,0.00036125,2]
[392986279,1762198241401,-1929.14,0.00036164,2]
[392986280,1762198241409,-150.97,0.00036217,60]
[392986281,1762198241419,-1000.0,0.00036267,7]
[392986282,1762198241428,-1000.0,0.000363,7]
[392986283,1762198241438,-430.15932396,0.00036308,7]
[392986284,1762198241447,-150.97,0.00036317,60]
[392986285,1762198241456,-150.0,0.00036409,120]
[392986286,1762198241466,-150.97,0.00036417,60]
[392986287,1762198241475,-1929.24267672,0.00036438,2]
[392986288,1762198241484,-168.0,0.00036441,2]
[392986289,1762198241493,-565.0,0.00036452,120]
[392986290,1762198241503,-1163.88747521,0.000365,2]
[392986291,1762198241512,-591.9489905,0.000365,120]
[392986292,1762198241521,-150.97,0.00036517,60]
[392986293,1762198241530,-150.97,0.00036617,60]
[392986294,1762198241539,-17003.15338606,0.0003669,2]
[392986295,1762198241548,-506.4537,0.000367,22]
[392986296,1762198241557,-1000.0,0.000367,7]
[392986297,1762198241568,-1500.0,0.000367,22]
[392986298,1762198241577,-1000.0,0.00036707,7]
[392986299,1762198241587,-150.97,0.00036717,60]
[392986300,1762198241597,-1425.0,0.00036718,2]
[392986301,1762198241607,-208.45748107,0.00036728,120]
[392986302,1762198241617,-204.25004624,0.00036728,120]
[392986303,1762198241626,-150.0,0.00036729,7]
[392986304,1762198241636,-1425.0,0.00036732,2]
[392986305,1762198241645,-1425.0,0.00036744,2]
[392986306,1762198241655,-3543.6038,0.00036755,2]
[392986307,1762198241664,-204.285939,0.00036755,30]
[392986308,1762198241673,-565.0,0.00036755,7]
[392986309,1762198241683,-1425.0,0.00036757,2]
[392986310,1762198241692,-1425.0,0.00036796,2]
[392986311,1762198241702,-1425.0,0.00036796,2]
[392986312,1762198241870,-1425.0,0.00036806,2]
[392986313,1762198241879,-150.97,0.00036817,60]
[392986314,1762198241889,-890.41706766,0.00036831,2]
[392986315,1762198241898,-1425.0,0.00036834,2]
[392986316,1762198241908,-150.0,0.0003684,7]
[392986317,1762198241917,-500.0,0.00036844,120]
[392986318,1762198241926,-1344.02,0.00036844,120]
[392986319,1762198241936,-565.0,0.00036853,2]
[392986320,1762198241946,-151.0,0.00036853,14]
[392986321,1762198241955,-1344.02,0.00036856,120]
[392986322,1762198241964,-176132.42870956,0.00036856,7]
[392986323,1762198241974,-1178923.72724551,0.00036857,7]
[392986324,1762198241983,-1425.0,0.00036865,2]
[392986325,1762198241992,-428.77426768,0.00036872,120]
[392986326,1762198242001,-170.33387422,0.00036887,30]
[392986327,1762198242011,-167.29,0.00036887,30]
[392986328,1762198242020,-195.18159784,0.00036887,30]
[392986329,1762198242029,-212.85,0.000369,30]
[392986330,1762198242039,-1425.0,0.0003691,2]
[392986331,1762198242048,-1000.0,0.00036916,7]
[392986332,1762198242057,-150.97,0.00036917,60]
[392986333,1762198242066,-168.0,0.00036918,2]
[392986334,1762198242076,-1425.0,0.00036926,2]
[392986335,1762198242086,-1425.0,0.00036935,2]
[392986336,1762198242095,-1425.0,0.00036939,2]
[392986337,1762198242105,-1999.99,0.0003694,2]
[392986338,1762198242114,-1425.0,0.00036952,2]
[392986339,1762198242124,-2000.0,0.00036954,2]
[392986340,1762198242134,-150.0,0.00036954,120]
[392986342,1762198242143,-160.32763133,0.00036956,15]
[392986343,1762198242152,-170.33,0.00036957,30]
[392986344,1762198242161,-195.18,0.00036957,30]
[392986345,1762198242171,-215.353,0.0003696,2]
[392986346,1762198242180,-744.35033275,0.00036964,2]
[392986347,1762198242189,-285.0,0.00036966,120]
[392986349,1762198242198,-2000.0,0.00036968,2]
[392986351,1762198242207,-285.0,0.00036976,120]
[392986352,1762198242216,-1344.02,0.00036976,120]
[392986353,1762198242225,-1344.02,0.00036976,120]
[392986354,1762198242234,-2000.0,0.00036976,2]
[392986355,1762198242244,-150.0,0.00036981,7]
[392986356,1762198242253,-1999.99,0.00036981,2]
[392986358,1762198242263,-3342.0,0.00036983,5]
[392986359,1762198242271,-999.0,0.00036986,120]
[392986360,1762198242280,-150.0,0.00036986,20]
[392986361,1762198242290,-1344.02,0.00036986,120]
[392986362,1762198242300,-1344.02,0.00036986,120]
[392986363,1762198242309,-533789.74012014,0.00036987,7]
[392986364,1762198242320,-500.0,0.00036987,2]
[392986365,1762198242330,-500.0,0.00036987,60]
[392986366,1762198242340,-150.0,0.00036987,60]
[392986367,1762198242350,-150.0,0.00036987,60]
[392986368,1762198242359,-150.0,0.00036987,60]
[392986369,1762198242369,-212.33384308,0.00036987,120]
[392986370,1762198242379,-150.0,0.00036987,60]
[392986371,1762198242388,-500.0,0.00036987,60]
[392986372,1762198242398,-150.0,0.00036987,60]
[392986373,1762198242407,-151.37163978,0.00036987,60]
[392986374,1762198242417,-150.0,0.00036987,60]
[392986375,1762198242426,-150.0,0.00036987,60]
[392986376,1762198242435,-500.0,0.00036987,60]
[392986378,1762198242445,-150.77091693,0.00036987,60]
[392986380,1762198242454,-150.0,0.00036987,30]
[392986382,1762198242464,-166.09991313,0.00036987,60]
[392986384,1762198242473,-179.9042616,0.00036987,60]
[392986385,1762198242482,-150.0,0.00036987,60]
[392986386,1762198242491,-150.0,0.00036987,2]
[392986387,1762198242500,-218.2152435,0.00036987,60]
[392986388,1762198242510,-500.0,0.00036987,60]
[392986389,1762198242519,-500.0,0.00036987,60]
[392986390,1762198242529,-150.0,0.00036987,30]
[392986391,1762198242539,-554.0,0.00036987,30]
[392986392,1762198242548,-500.0,0.00036987,60]
[392986393,1762198242557,-500.0,0.00036987,2]
[392986394,1762198242567,-670.0,0.00036987,30]
[392986395,1762198242576,-1425.0,0.00036989,2]
[392986396,1762198242586,-215.0,0.00037,19]
[392986397,1762198242595,-150.0,0.00037,60]
[392986398,1762198242605,-3931.92076933,0.00037,7]
[392986399,1762198242614,-3813.50309,0.00037,2]
[392986400,1762198242624,-500.0,0.00037003,2]
[392986401,1762198242634,-151.0,0.00037003,2]
[392986402,1762198242643,-1425.0,0.00037007,2]
[392986403,1762198242654,-1425.0,0.00037014,2]
[392986404,1762198242663,-2000.0,0.00037015,2]
[392986405,1762198242672,-150.97,0.00037017,60]
[392986406,1762198242682,-1425.0,0.00037017,2]
[392986407,1762198242691,-1865.46,0.00037019,2]
[392986408,1762198242700,-549.748449,0.00037028,120]
[392986409,1762198242711,-1344.02,0.00037034,120]
[392986410,1762198242722,-2000.0,0.00037034,2]
[392986411,1762198242731,-150.0,0.00037036,7]
[392986412,1762198242741,-288.86,0.00037036,120]
[392986413,1762198242750,-1425.0,0.00037041,2]
[392986414,1762198242762,-150.0,0.00037041,7]
[392986415,1762198242771,-1344.02,0.00037044,120]
[392986416,1762198242781,-285.0,0.00037046,120]
[392986417,1762198242791,-1344.02,0.00037053,120]
[392986418,1762198242800,-151.0,0.00037053,14]
[392986419,1762198242809,-151.0,0.00037053,14]
[392986420,1762198242820,-56169.8228986,0.00037054,2]
[392986421,1762198242829,-6762.1730735,0.00037054,2]
[392986422,1762198242839,-56046.5667419,0.00037054,2]
[392986423,1762198242848,-6177.2488058,0.00037054,2]
[392986424,1762198242857,-11686.9531558,0.00037054,2]
[392986425,1762198242867,-3813.50309,0.00037054,2]
[392986426,1762198242875,-155.038426,0.00037055,31]
[392986427,1762198242885,-151.0,0.00037055,14]
[392986428,1762198242894,-151.0,0.00037055,14]
[392986429,1762198242903,-151.0,0.00037055,14]
[392986430,1762198242913,-151.0,0.00037055,31]
[392986431,1762198242922,-1231.44758209,0.00037055,2]
[392986432,1762198242931,-200.0,0.00037055,2]
[392986433,1762198242940,-151.0,0.00037055,31]
[392986434,1762198242950,-152.0,0.00037055,7]
[392986435,1762198242959,-222.90642399,0.00037055,7]
[392986436,1762198242969,-825.0,0.00037055,7]
[392986437,1762198242978,-222.08276422,0.00037055,7]
[392986438,1762198242987,-154.69909821,0.00037055,7]
[392986439,1762198242997,-152.0,0.00037055,7]
[392986440,1762198243006,-152.0,0.00037055,7]
[392986441,1762198243015,-152.0,0.00037055,7]
[392986442,1762198243025,-152.0,0.00037055,7]
[392986443,1762198243034,-152.0,0.00037055,7]
[392986444,1762198243043,-152.0,0.00037055,7]
[392986445,1762198243053,-152.0,0.00037055,7]
[392986446,1762198243063,-152.0,0.00037055,7]
[392986447,1762198243074,-152.0,0.00037055,7]
[392986448,1762198243083,-152.0,0.00037055,7]
[392986449,1762198243093,-152.0,0.00037055,7]
[392986451,1762198243104,-152.0,0.00037055,7]
[392986453,1762198243113,-152.0,0.00037055,7]
[392986454,1762198243122,-152.0,0.00037055,7]
[392986456,1762198243132,-152.0,0.00037055,7]
[392986457,1762198243141,-220.10412224,0.00037055,7]
[392986458,1762198243151,-151.0,0.00037055,31]
[392986459,1762198243160,-151.0,0.00037055,31]
[392986460,1762198243169,-151.0,0.00037055,31]
[392986461,1762198243178,-151.0,0.00037055,31]
[392986462,1762198243188,-151.0,0.00037055,31]
[392986463,1762198243197,-151.0,0.00037055,31]
[392986464,1762198243207,-151.0,0.00037055,31]
[392986465,1762198243217,-151.0,0.00037055,31]
[392986466,1762198243227,-151.0,0.00037055,31]
[392986467,1762198243237,-151.0,0.00037055,31]
[392986468,1762198243246,-218.037799,0.00037055,31]
[392986469,1762198243256,-157.792133,0.00037055,31]
[392986470,1762198243265,-151.0,0.00037055,31]
[392986471,1762198243275,-151.0,0.00037055,31]
[392986472,1762198243284,-151.0,0.00037055,31]
[392986473,1762198243294,-225.658521,0.00037055,31]
[392986474,1762198243303,-151.0,0.00037055,31]
[392986475,1762198243313,-156.088921,0.00037055,31]
[392986476,1762198243324,-151.0,0.00037055,31]
[392986477,1762198243334,-166.425213,0.00037055,31]
[392986478,1762198243344,-151.0,0.00037055,31]
[392986479,1762198243357,-180.410312,0.00037055,31]
[392986480,1762198243367,-151.0,0.00037055,31]
[392986481,1762198243376,-151.0,0.00037055,31]
[392986482,1762198243386,-151.0,0.00037055,31]
[392986483,1762198243396,-151.0,0.00037055,31]
[392986484,1762198243406,-151.0,0.00037055,31]
[392986485,1762198243416,-151.0,0.00037055,31]
[392986486,1762198243425,-300.103055,0.00037055,31]
[392986487,1762198243435,-151.0,0.00037055,31]
[392986488,1762198243444,-151.0,0.00037055,31]
[392986489,1762198243452,-151.0,0.00037055,31]
[392986490,1762198243462,-151.0,0.00037055,31]
[392986491,1762198243471,-151.0,0.00037055,31]
[392986492,1762198243481,-151.0,0.00037055,31]
[392986493,1762198243490,-151.0,0.00037055,31]
[392986494,1762198243499,-151.0,0.00037055,31]
[392986495,1762198243509,-151.0,0.00037055,31]
[392986496,1762198243518,-156.799692,0.00037055,31]
[392986497,1762198243527,-151.0,0.00037055,31]
[392986498,1762198243536,-151.0,0.00037055,31]
[392986499,1762198243546,-151.0,0.00037055,31]
[392986500,1762198243556,-151.0,0.00037055,31]
[392986501,1762198243565,-159.49417,0.00037055,31]
[392986502,1762198243575,-151.0,0.00037055,31]
[392986503,1762198243584,-198.981655,0.00037055,31]
[392986504,1762198243594,-151.0,0.00037055,31]
[392986505,1762198243603,-151.0,0.00037055,31]
[392986506,1762198243612,-159.027906,0.00037055,31]
[392986507,1762198243621,-153.454905,0.00037055,31]
[392986508,1762198243630,-151.0,0.00037055,31]
[392986509,1762198243639,-151.0,0.00037055,31]
[392986510,1762198243648,-151.0,0.00037055,31]
[392986511,1762198243657,-157.571671,0.00037055,31]
[392986512,1762198243667,-151.0,0.00037055,31]
[392986513,1762198243676,-151.0,0.00037055,31]
[392986514,1762198243685,-151.0,0.00037055,31]
[392986515,1762198243694,-151.0,0.00037055,31]
[392986516,1762198243703,-151.0,0.00037055,31]
[392986517,1762198243717,-151.0,0.00037055,31]
[392986518,1762198243726,-151.0,0.00037055,31]
[392986519,1762198243736,-151.0,0.00037055,31]
[392986520,1762198243745,-151.0,0.00037055,31]
[392986521,1762198243754,-151.0,0.00037055,31]
[392986522,1762198243763,-175.508233,0.00037055,31]
[392986523,1762198243772,-152.793943,0.00037055,31]
[392986524,1762198243781,-151.0,0.00037055,31]
[392986525,1762198243792,-153.31288,0.00037055,31]
[392986526,1762198243801,-151.0,0.00037055,31]
[392986527,1762198243810,-151.0,0.00037055,31]
[392986528,1762198243820,-151.0,0.00037055,31]
[392986529,1762198243831,-151.0,0.00037055,31]
[392986530,1762198243840,-151.0,0.00037055,31]
[392986531,1762198243850,-151.0,0.00037055,31]
[392986532,1762198243859,-151.0,0.00037055,31]
[392986533,1762198243868,-151.0,0.00037055,31]
[392986534,1762198243877,-151.0,0.00037055,31]
[392986535,1762198243886,-151.0,0.00037055,31]
[392986536,1762198243895,-151.0,0.00037055,31]
[392986537,1762198243904,-236.023466,0.00037055,31]
[392986538,1762198243914,-151.0,0.00037055,31]
[392986539,1762198243924,-151.0,0.00037055,31]
[392986540,1762198243933,-284.0238278,0.00037055,31]
[392986541,1762198243942,-151.0,0.00037055,31]
[392986542,1762198243951,-151.0,0.00037055,31]
[392986543,1762198243960,-151.0,0.00037055,31]
[392986544,1762198243969,-151.0,0.00037055,31]
[392986545,1762198243979,-157.644612,0.00037055,31]
[392986546,1762198243987,-200.0,0.00037055,2]
[392986547,1762198243997,-825.0,0.00037055,7]
[392986548,1762198244007,-588.92,0.00037055,14]
[392986549,1762198244016,-1239.0,0.00037055,7]
[392986550,1762198244024,-1239.0,0.00037055,7]
[392986551,1762198244034,-1239.0,0.00037055,7]
[392986552,1762198244043,-1239.0,0.00037055,7]
[392986553,1762198244053,-1239.0,0.00037055,7]
[392986554,1762198244062,-1239.0,0.00037055,7]
[392986555,1762198244073,-1239.0,0.00037055,7]
[392986556,1762198244082,-1239.0,0.00037055,7]
[392986557,1762198244092,-1239.0,0.00037055,7]
[392986558,1762198244101,-1239.0,0.00037055,7]
[392986559,1762198244110,-1239.0,0.00037055,7]
[392986560,1762198244120,-1344.02,0.00037055,120]
[392986561,1762198244129,-200.0,0.00037055,2]
[392986562,1762198244139,-160.57389801,0.00037055,30]
[392986563,1762198244148,-300.0,0.00037055,10]
[392986564,1762198244158,-666.0,0.00037055,10]
[392986565,1762198244167,-300.0,0.00037056,10]
[392986566,1762198244176,-666.0,0.00037056,10]
[392986567,1762198244186,-151.0,0.00037056,31]
[392986568,1762198244195,-151.0,0.00037056,30]
[392986569,1762198244204,-151.0,0.00037056,31]
[392986570,1762198244213,-151.0,0.00037056,31]
[392986571,1762198244222,-217.091704,0.00037056,31]
[392986572,1762198244233,-151.0,0.00037056,7]
[392986573,1762198244242,-151.0,0.00037056,7]
[392986574,1762198244252,-151.0,0.00037056,7]
[392986575,1762198244262,-151.0,0.00037056,7]
[392986576,1762198244271,-151.160957,0.00037056,7]
[392986577,1762198244280,-151.0,0.00037056,31]
[392986578,1762198244290,-218.979912,0.00037056,31]
[392986579,1762198244299,-151.0,0.00037056,31]
[392986580,1762198244308,-171.509977,0.00037056,31]
[392986581,1762198244318,-151.0,0.00037056,31]
[392986582,1762198244327,-154.050981,0.00037056,31]
[392986583,1762198244336,-151.0,0.00037056,31]
[392986584,1762198244345,-151.0,0.00037056,31]